{"text_format":"1","workbook":"xlsx","n_sheets":2,"sheets":["Risques","Tables"],"not_rendered":{"charts":0,"images":1,"macros":1,"external_links":0,"defined_names":4,"comments":1,"pivot_tables":0},"unopened":[],"bounds":{"document_bytes":16777216,"sheet_cells":100000,"rows_first":2000,"rows_last":500,"rows_between":2000,"halvings":0,"cell_chars":16384,"cell_head_chars":4096},"cells_cut":0,"cells_raw":0,"read":"whole","date_system":"1900"}

{"sheet":"Risques","index":0,"n_rows":36,"n_cols":11,"rows_kept":36,"cut":false,"hidden":false,"merged":[]}
["Cliquez sur le bouton\nci-contre pour réordonner\nles 35 lignes de risque en\nordre descendant d'importance\n\nRisque, description","Impact probable sur le projet","Degré\nd’impact",null,"Probabilité",null,"Détection",null,"Numéro de\npriorité","Type de réponse","Réponse ou mesure"]
[null,null,null,null,null,null,null,{"$f":"IF(G2=\"Impossible\",1%,IF(G2=\"Très faible\",5%,IF(G2=\"Faible\",20%,IF(G2=\"Moyenne\",40%,IF(G2=\"Moyenne-haute\",60%,IF(G2=\"Haute\",75%,IF(G2=\"Très haute\",90%,0)))))))","v":0},{"$f":"F2*(1-H2)*D2*100","v":0}]
[null,null,null,null,null,null,null,0,0]
[null,null,null,{"$f":"IF(C4=\"Minime\",1,IF(C4=\"Bas\",2.5,IF(C4=\"Bas-modéré\",4,IF(C4=\"Modéré\",5,IF(C4=\"Modéré-haut\",6,IF(C4=\"Haut\",8,IF(C4=\"Très haut\",9,0)))))))","v":0},null,{"$f":"IF(E4=\"Très faible\",0.000001,IF(E4=\"Basse\",0.00005,IF(E4=\"Basse-moyenne\",0.00025,IF(E4=\"Moyenne\",0.001,IF(E4=\"Moyenne-haute\",0.0025,IF(E4=\"Haute\",0.025,IF(E4=\"Très haute\",0.5,0)))))))","v":0},null,0,0]
[null,null,null,0,null,0,null,0,0]
[null,null,null,0,null,0,null,0,0]
[null,null,null,0,null,0,null,0,0]
[null,null,null,0,null,0,null,0,0]
[null,null,null,0,null,0,null,0,0]
[null,null,null,0,null,0,null,0,0]
[null,null,null,0,null,0,null,0,0]
[null,null,null,0,null,0,null,0,0]
[null,null,null,0,null,0,null,0,0]
[null,null,null,0,null,0,null,0,0]
[null,null,null,0,null,0,null,0,0]
[null,null,null,0,null,0,null,0,0]
[null,null,null,0,null,0,null,0,0]
[null,null,null,0,null,0,null,0,0]
[null,null,null,0,null,0,null,0,0]
[null,null,null,0,null,0,null,0,0]
[null,null,null,0,null,0,null,0,0]
[null,null,null,0,null,0,null,0,0]
[null,null,null,0,null,0,null,0,0]
[null,null,null,0,null,0,null,0,0]
[null,null,null,0,null,0,null,0,0]
[null,null,null,0,null,0,null,0,0]
[null,null,null,0,null,0,null,0,0]
[null,null,null,0,null,0,null,0,0]
[null,null,null,0,null,0,null,0,0]
[null,null,null,0,null,0,null,0,0]
[null,null,null,0,null,0,null,0,0]
[null,null,null,0,null,0,null,0,0]
[null,null,null,0,null,0,null,0,0]
[null,null,null,0,null,0,null,0,0]
[null,null,null,0,null,0,null,0,0]
[null,null,null,0,null,0,null,0,0]

{"sheet":"Tables","index":1,"n_rows":8,"n_cols":4,"rows_kept":8,"cut":false,"hidden":false,"merged":[]}
["Degré\nd’impact","Probabilité","Détection","Type de réponse"]
["Minime","Très faible","Impossible","Improviser"]
["Bas","Basse","Très faible","Eviter"]
["Bas-modéré","Basse-moyenne","Faible","Réduire probabilité"]
["Modéré","Moyenne","Moyenne","Réduire impact"]
["Modéré-haut","Moyenne-haute","Moyenne-haute","Assumer"]
["Haut","Haute","Haute","Partager"]
["Très haut","Très haute","Très haute","Transférer"]